bitfinex-derivatives/quotes_SOLF0:USTF0_20241025
["timestamp","ask_amount","ask_price","bid_price","bid_amount"]
[1729862057195,2.8813,173.61,173.58,2.8817]
[1729862058995,2.8812,173.62,173.58,2.8817]
[1729862064099,4.2,173.67,173.52,6.6014]
[1729862064100,2.8819,173.58,173.52,6.6014]
[1729862064401,8.85315974,173.56,173.52,6.6014]
[1729862064602,11.73505974,173.58,173.52,15.45455974]
[1729862065103,11.73505974,173.58,173.53,2.8825]
[1729862065802,4.2,173.63,173.52,9.4841]
[1729862065803,11.73505974,173.57,173.52,9.4841]
[1729862066400,2.8819,173.57,173.52,18.33725974]
[1729862067091,2.8819,173.57,173.53,2.8826]
[1729862067497,2.8819,173.57,173.52,15.45455974]
[1729862067903,11.73495974,173.58,173.53,2.8825]
[1729862068804,2.8816,173.59,173.55,11.73525974]
[1729862069006,2.8816,173.59,173.56,4.2]
[1729862069303,8.85315974,173.61,173.56,4.2]
[1729862069503,2.8815,173.6,173.56,7.082]
[1729862069906,11.73465974,173.6,173.56,7.082]
[1729862070906,11.73465974,173.6,173.56,4.2]
[1729862072411,2.8815,173.6,173.56,4.2]
[1729862075510,2.8816,173.59,173.56,4.2]
[1729862075907,8.85315974,173.61,173.56,4.2]
[1729862076103,8.85315974,173.58,173.56,4.2]
[1729862077401,2.8819,173.57,173.56,4.2]
[1729862077607,8.85315974,173.58,173.56,4.2]
[1729862078106,2.8819,173.58,173.56,4.2]
[1729862082713,11.73505974,173.58,173.56,4.2]
[1729862089821,8.85315974,173.61,173.56,7.082]
[1729862090017,8.85315974,173.62,173.57,8.85315974]
[1729862090925,8.85315974,173.62,173.56,13.05315974]
[1729862091327,2.8813,173.61,173.58,2.8818]
[1729862091525,2.8813,173.61,173.56,13.05315974]
[1729862091526,8.85315974,173.6,173.56,4.2]
[1729862091727,8.85315974,173.59,173.56,4.2]
[1729862092033,2.8818,173.58,173.56,4.2]
[1729862094536,2.8818,173.58,173.55,4.16]
[1729862095927,2.8818,173.58,173.55,7.0423]
[1729862099034,11.73485974,173.59,173.55,7.0423]
[1729862102332,2.8812,173.62,173.55,13.01315974]
[1729862102642,8.85315974,173.63,173.57,8.85315974]
[1729862102842,8.85315974,173.63,173.58,2.8817]
[1729862102843,2.8813,173.62,173.58,2.8817]
[1729862103034,8.85315974,173.63,173.55,4.16]
[1729862103236,8.85315974,173.63,173.56,8.85315974]
[1729862103433,11.73445974,173.61,173.57,2.8818]
[1729862105740,2.8813,173.61,173.58,2.8818]
[1729862106537,2.8813,173.61,173.57,2.8819]
[1729862106750,8.85315974,173.62,173.56,8.85315974]
[1729862107238,8.85315974,173.66,173.61,8.85315974]
[1729862107440,8.85315974,173.66,173.61,13.01315974]
[1729862107441,2.8807,173.65,173.61,13.01315974]
[1729862107839,2.8807,173.65,173.63,8.85315974]
[1729862108045,4.6,173.64,173.63,8.85315974]
[1729862108443,1.4812,173.64,173.63,8.85315974]
[1729862108642,1.4812,173.64,173.63,13.88505983]
[1729862108951,1.4812,173.64,173.63,16.76595983]
[1729862109848,1.4812,173.64,173.63,5.03190009]
[1729862110046,1.4812,173.64,173.62,2.3843]
[1729862111951,1.4812,173.64,173.63,5.02821307]
[1729862112348,1.4812,173.64,173.63,2.8809]
[1729862112752,1.4812,173.64,173.63,11.73405974]
[1729862113950,1.4812,173.64,173.63,16.75953604]
[1729862114152,1.4812,173.64,173.63,11.73405974]
[1729862114750,1.4812,173.64,173.63,16.75801955]
[1729862116254,2.8802,173.68,173.65,2.8806]
[1729862116454,2.8802,173.68,173.66,4.12]
[1729862116653,2.88,173.69,173.66,4.12]
[1729862116853,5.7569,173.79,173.67,2.8802]
[1729862117054,8.85315974,173.72,173.67,2.8802]
[1729862117243,2.8793,173.73,173.7,8.85315974]
[1729862117444,8.85315974,173.74,173.71,4.12]
[1729862117649,4.12,173.8,173.71,4.12]
[1729862117855,2.8793,173.73,173.71,4.12]
[1729862118047,8.85315974,173.72,173.71,4.12]
[1729862118454,11.73255974,173.72,173.71,4.12]
[1729862119349,2.8788,173.76,173.71,4.12]
[1729862119546,8.85315974,173.75,173.71,4.12]
[1729862120552,8.85315974,173.73,173.71,4.12]
[1729862121059,2.8794,173.72,173.71,4.12]
[1729862121554,62.22,173.89,173.71,12.97315974]
[1729862121759,8.85315974,173.79,173.74,2.8791]
[1729862121956,8.85315974,173.79,173.75,4.12]
[1729862122148,2.8785,173.78,173.75,4.12]
[1729862124648,8.85315974,173.8,173.75,12.97315974]
[1729862125050,3.6763,173.87,173.78,8.85315974]
[1729862125252,8.85315974,173.83,173.79,4.12]
[1729862125456,2.8781,173.81,173.79,4.12]
[1729862125652,1.2511,173.87,173.79,12.97315974]
[1729862125854,8.85315974,173.85,173.79,12.97315974]
[1729862126156,1.2818,173.94,173.8,8.85315974]
[1729862126358,1.2818,173.94,173.81,8.85315974]
[1729862126359,8.85315974,173.86,173.81,8.85315974]
[1729862126749,2.8773,173.85,173.81,8.85315974]
[1729862127154,8.85315974,173.86,173.81,8.85315974]
[1729862127554,2.8774,173.85,173.81,8.85315974]
[1729862127749,1.2918,173.92,173.81,8.85315974]
[1729862127954,8.85315974,173.87,173.81,8.85315974]
[1729862128166,2.8772,173.86,173.81,11.73105974]
[1729862128553,8.85315974,173.87,173.81,8.85315974]
[1729862128752,1.2918,173.92,173.8,2.8781]
[1729862128753,8.85315974,173.84,173.8,2.8781]
[1729862129251,8.85315974,173.83,173.81,4.12]
[1729862129458,2.878,173.81,173.79,4.12]
[1729862129657,8.85315974,173.8,173.79,4.12]
[1729862130853,4.12,173.89,173.79,12.97315974]
[1729862131056,8.85315974,173.84,173.79,12.97315974]
[1729862131961,11.73075974,173.84,173.79,15.85135974]
[1729862132758,11.73075974,173.84,173.81,8.85315974]
[1729862132759,2.8776,173.84,173.81,8.85315974]
[1729862134261,2.8773,173.85,173.81,8.85315974]
[1729862135360,2.8772,173.86,173.82,8.85315974]
[1729862135558,2.8772,173.86,173.83,4.12]
[1729862137560,2.877,173.87,173.83,4.12]
[1729862137768,4.6,173.86,173.83,12.97315974]
[1729862137956,4.6,173.86,173.85,8.85315974]
[1729862139462,4.6,173.86,173.85,11.73045974]
[1729862142664,4.6,173.86,173.84,2.8774]
[1729862145962,4.6,173.86,173.84,11.73055974]
[1729862146469,4.6,173.86,173.84,2.8774]
[1729862146676,4.6,173.86,173.76,1.2321]
[1729862146868,8.85315974,173.85,173.79,8.85315974]
[1729862147370,2.8775,173.84,173.81,2.8779]
[1729862147676,2.8775,173.84,173.82,4.18]
[1729862147971,8.85315974,173.83,173.78,8.85315974]
[1729862148168,11.73085974,173.83,173.79,7.0581]
[1729862148571,11.73085974,173.83,173.79,4.18]
[1729862148873,11.73085974,173.83,173.8,2.8781]
[1729862150569,2.8777,173.83,173.8,2.8781]
[1729862151270,2.8777,173.83,173.8,11.73125974]
[1729862153466,11.73065974,173.84,173.8,8.85315974]
[1729862153664,11.73065974,173.84,173.81,2.8779]
[1729862156077,2.8773,173.85,173.81,11.73095974]
[1729862156466,2.8773,173.85,173.81,8.85315974]
[1729862156669,4.6,173.86,173.83,8.85315974]
[1729862156867,4.6,173.86,173.83,13.03315974]
[1729862157673,4.6,173.86,173.85,2.8773]
[1729862162275,4.6,173.86,173.84,12.55815974]
[1729862162276,2.876,173.93,173.9,2.8764]
[1729862162477,2.876,173.93,173.9,15.90955974]
[1729862163573,4.18,174.01,173.92,8.85315974]
[1729862163772,8.85315974,173.98,173.93,8.85315974]
[1729862164174,2.8754,173.97,173.93,11.72905974]
[1729862165284,2.8754,173.97,173.93,8.85315974]
[1729862166083,2.8754,173.97,173.94,4.18]
[1729862167283,2.8755,173.96,173.94,4.18]
[1729862169786,11.72825974,173.98,173.94,15.90895974]
[1729862170487,2.8751,173.99,173.96,8.85315974]
[1729862170682,8.85315974,174.0,173.96,8.85315974]
[1729862171393,4.59,173.99,173.96,8.85315974]
[1729862171884,4.59,173.99,173.97,8.85315974]
[1729862172080,4.59,173.99,173.98,4.14]
[1729862174592,4.59,173.99,173.98,12.99315974]
[1729862175190,4.59,173.99,173.98,4.14]
[1729862175687,7.4651,173.99,173.95,8.85315974]
[1729862175890,13.44315974,173.99,173.96,4.14]
[1729862176498,2.8752,173.98,173.96,4.14]
[1729862177196,7.465,173.99,173.96,4.14]
[1729862178387,7.465,173.99,173.95,11.72875974]
[1729862178590,7.465,173.99,173.96,4.14]
[1729862179598,4.59,173.99,173.98,8.85315974]
[1729862179803,4.59,173.99,173.98,11.72825974]
[1729862182293,4.59,173.99,173.96,4.14]
[1729862182294,4.59,173.99,173.96,2.8754]
[1729862182499,4.59,173.99,173.91,3.75]
[1729862182693,4.59,173.99,173.94,8.85315974]
[1729862182900,4.59,173.99,173.97,8.85315974]
[1729862186000,7.465,173.99,173.97,8.85315974]
[1729862186500,2.8751,173.98,173.97,8.85315974]
[1729862187398,4.59,173.99,173.96,15.86855974]
[1729862187700,4.59,173.99,173.98,8.85315974]
[1729862189803,4.59,173.99,173.96,7.0154]
[1729862190098,13.44315974,173.99,173.96,4.12]
[1729862190501,2.8755,173.96,173.95,4.12]
[1729862192902,8.85315974,173.98,173.95,4.12]
[1729862193099,2.8754,173.97,173.95,4.12]
[1729862194899,2.8754,173.97,173.86,1.2225]
[1729862194900,2.876,173.93,173.89,2.8765]
[1729862195094,8.85315974,173.94,173.9,4.14]
[1729862195806,2.876,173.93,173.9,4.14]
[1729862196902,11.72905974,173.94,173.9,7.0164]
[1729862197204,8.85315974,173.94,173.9,4.14]
[1729862197597,2.8761,173.93,173.9,4.14]
[1729862198907,4.59,173.92,173.9,4.14]
[1729862199501,4.59,173.92,173.9,12.99315974]
[1729862199707,4.59,173.92,173.9,15.86955974]
[1729862201408,4.59,173.92,173.9,7.0164]
[1729862202111,2.8763,173.91,173.9,4.14]
[1729862202713,2.8763,173.91,173.89,13.01315974]
[1729862211824,4.59,173.92,173.9,11.72945974]
[1729862212026,4.59,173.92,173.9,8.85315974]
[1729862212419,4.59,173.92,173.91,11.72945974]
[1729862213424,2.6323,173.92,173.91,11.72945974]
[1729862215521,1.1924,174.01,173.95,2.8755]
[1729862215717,1.1924,174.01,173.96,13.01315974]
[1729862215718,10.04555974,174.01,173.96,13.01315974]
[1729862216027,2.8751,173.99,173.96,15.88855974]
[1729862221014,2.8749,174.0,173.96,15.88855974]
[1729862221730,2.8747,174.01,173.97,11.72835974]
[1729862222022,2.4532,174.05,173.99,8.85315974]
[1729862222225,8.85315974,174.04,173.99,8.85315974]
[1729862222429,2.8745,174.02,173.99,8.85315974]
[1729862222627,8.85315974,174.04,173.99,8.85315974]
[1729862223218,2.8743,174.03,173.99,11.72805974]
[1729862223820,2.8743,174.03,174.0,4.16]
[1729862224032,2.8743,174.03,174.0,13.01315974]
[1729862224723,10.11395974,174.05,174.0,13.01315974]
[1729862224724,1.2608,174.05,174.0,13.01315974]
[1729862225031,2.8742,174.04,174.0,15.88785974]
[1729862229239,11.72735974,174.04,174.0,15.88785974]
[1729862230834,11.72735974,174.04,174.0,11.72785974]
[1729862231032,11.72735974,174.04,174.01,4.12]
[1729862234337,2.8742,174.04,174.01,4.12]
[1729862235739,2.8742,174.04,174.01,12.97315974]
[1729862236046,1.2454,174.1,174.01,12.97315974]
[1729862236047,8.85315974,174.08,174.03,11.72745974]
[1729862236240,8.85315974,174.08,174.04,8.85315974]
[1729862236740,2.8738,174.07,174.04,8.85315974]
[1729862236947,8.85315974,174.08,174.04,8.85315974]
[1729862237341,2.8738,174.06,174.04,8.85315974]
[1729862237638,1.2757,174.1,174.05,8.85315974]
[1729862237847,1.2757,174.1,174.05,12.97315974]
[1729862237848,10.12885974,174.1,174.05,12.97315974]
[1729862238045,2.8736,174.08,174.05,12.97315974]
[1729862239548,10.12885974,174.1,174.05,12.97315974]
[1729862239549,2.8737,174.07,174.05,12.97315974]
[1729862240246,2.8736,174.08,174.05,12.97315974]
[1729862244148,4.59,174.07,174.05,12.97315974]
[1729862247851,4.59,174.07,174.05,15.84705974]
[1729862248948,4.59,174.07,174.05,12.97315974]
[1729862250753,7.4638,174.07,174.05,12.97315974]
[1729862251249,4.59,174.07,174.05,12.97315974]
[1729862251455,4.59,174.07,174.05,4.12]
[1729862251652,4.59,174.07,174.05,12.97315974]
[1729862252154,4.59,174.07,174.02,1.2898]
[1729862252155,2.8738,174.06,174.02,4.1642]
[1729862252359,2.8738,174.06,174.04,8.85315974]
[1729862253554,4.59,174.07,174.05,8.85315974]
[1729862253947,4.59,174.07,174.03,4.12]
[1729862253948,4.59,174.07,174.06,8.85315974]
[1729862254260,4.59,174.07,174.06,11.72695974]
[1729862256158,337.0,174.2,174.06,8.85315974]
[1729862256356,8.85315974,174.23,174.17,8.85315974]
[1729862256560,8.85315974,174.23,174.18,4.12]
[1729862256947,2.8712,174.22,174.18,4.12]
[1729862257254,2.8712,174.22,174.19,4.12]
[1729862257455,11.72415974,174.23,174.19,4.12]
[1729862258464,8.85315974,174.23,174.19,4.12]
[1729862258768,8.85315974,174.23,174.19,12.97315974]
[1729862259057,8.85315974,174.23,174.2,4.12]
[1729862259360,8.85315974,174.25,174.2,4.12]
[1729862259547,3.6859,174.31,174.21,8.85315974]
[1729862259858,3.6859,174.31,174.22,4.1]
[1729862259859,8.85315974,174.24,174.22,4.1]
[1729862260247,3.6859,174.31,174.22,4.1]
[1729862260452,8.85315974,174.26,174.22,4.1]
[1729862260752,3.6859,174.31,174.23,8.85315974]
[1729862260955,8.85315974,174.27,174.23,8.85315974]
[1729862261159,3.6859,174.31,174.14,17.38258433]
[1729862261359,8.85315974,174.28,174.23,8.85315974]
[1729862261658,8.85315974,174.28,174.14,2.5196]
[1729862261659,8.85315974,174.3,174.25,8.85315974]
[1729862262159,8.85315974,174.3,174.23,2.871]
[1729862262367,8.85315974,174.28,174.24,4.1]
[1729862262657,3.6859,174.31,174.2,2.8715]
[1729862262658,11.72375974,174.26,174.2,2.8715]
[1729862262849,11.72375974,174.26,174.21,12.95315974]
[1729862263645,8.85315974,174.26,174.21,12.95315974]
[1729862265758,11.72365974,174.26,174.21,12.95315974]
[1729862266162,11.72365974,174.26,174.21,8.85315974]
[1729862266454,11.72365974,174.26,174.22,4.1]
[1729862267158,11.72365974,174.26,174.22,12.95315974]
[1729862268759,4.59,174.25,174.22,12.95315974]
[1729862269267,4.59,174.25,174.23,2.8709]
[1729862269562,4.59,174.25,174.24,8.85315974]
[1729862270350,4.59,174.25,174.24,11.72395974]
[1729862270752,4.59,174.25,174.24,8.85315974]
[1729862272264,4.59,174.25,174.24,11.72395974]
[1729862277565,4.59,174.25,174.24,8.85315974]
[1729862278065,4.59,174.25,174.15,2.29789816]
[1729862278066,13.44315974,174.25,174.15,2.29789816]
[1729862278363,8.85315974,174.24,174.18,8.85315974]
[1729862278563,8.85315974,174.22,174.18,8.85315974]
[1729862278865,2.8713,174.22,174.19,8.85315974]
[1729862279066,4.59,174.25,174.2,12.95315974]
[1729862279264,2.8709,174.24,174.21,15.82445974]
[1729862279963,2.8709,174.24,174.21,12.95315974]
[1729862281467,13.44315974,174.25,174.21,12.95315974]
[1729862281663,16.31395974,174.25,174.21,15.82445974]
[1729862281866,16.31395974,174.25,174.21,12.95315974]
[1729862283066,4.59,174.24,174.21,12.95315974]
[1729862283867,16.31395974,174.25,174.21,12.95315974]
[1729862283868,17.24,174.49,174.23,8.85315974]
[1729862284065,8.85315974,174.36,174.32,8.85315974]
[1729862284269,3.7186,174.38,174.33,4.54]
[1729862284464,3.7186,174.38,174.33,13.39315974]
[1729862285071,2.8688,174.37,174.33,13.39315974]
[1729862285271,2.4166,174.38,174.34,8.85315974]
[1729862285870,2.4166,174.38,174.37,8.85315974]
[1729862286069,2.4166,174.38,174.37,13.39315974]
[1729862286281,2.4166,174.38,174.37,4.54]
[1729862288179,2.4166,174.38,174.34,8.85315974]
[1729862288374,2.4166,174.38,174.35,4.54]
[1729862289980,2.4166,174.38,174.36,8.85315974]
[1729862291182,1.2758,174.45,174.37,8.85315974]
[1729862291482,8.85315974,174.42,174.38,4.54]
[1729862291873,2.8681,174.41,174.38,4.54]
[1729862294287,2.5205,174.44,174.38,13.39315974]
[1729862294489,2.8679,174.42,174.38,13.39315974]
[1729862297496,2.8679,174.42,174.38,16.26165974]
[1729862297793,2.868,174.42,174.39,8.85315974]
[1729862298389,2.8668,174.49,174.41,8.85315974]
[1729862298585,2.8668,174.49,174.34,61.96]
[1729862298586,8.85315974,174.47,174.42,13.39315974]
[1729862298783,8.85315974,174.47,174.43,4.54]
[1729862299186,8.85315974,174.45,174.34,61.96]
[1729862299385,8.85315974,174.43,174.35,4.54]
[1729862299593,8.85315974,174.43,174.38,11.72155974]
[1729862299791,8.85315974,174.43,174.39,4.54]
[1729862300190,8.85315974,174.43,174.38,11.72155974]
[1729862300390,8.85315974,174.43,174.39,13.39315974]
[1729862300694,4.58,174.42,174.39,13.39315974]
[1729862301595,4.58,174.42,174.39,4.54]
[1729862301890,4.58,174.42,174.4,8.85315974]
[1729862303597,2.8681,174.41,174.4,4.54]
[1729862305287,2.8681,174.41,174.38,8.85315974]
[1729862305491,2.8681,174.41,174.39,4.54]
[1729862305798,2.8681,174.41,174.39,13.39315974]
[1729862315899,2.8681,174.41,174.4,8.85315974]
[1729862317406,2.8681,174.41,174.39,8.85315974]
[1729862317598,2.8681,174.41,174.4,4.44]
[1729862322106,2.8684,174.39,174.35,2.869]
[1729862322402,2.8684,174.39,174.35,8.85315974]
[1729862322403,8.85315974,174.39,174.35,8.85315974]
[1729862322603,8.85315974,174.39,174.36,4.44]
[1729862322906,2.8688,174.37,174.36,4.44]
[1729862323102,2.8688,174.37,174.35,8.85315974]
[1729862323305,2.8688,174.37,174.35,13.29315974]
[1729862324202,2.8688,174.37,174.35,8.85315974]
[1729862324601,2.869,174.35,174.34,4.44]
[1729862324808,2.869,174.35,174.28,2.29615142]
[1729862324809,8.85315974,174.35,174.21,8.64145957]
[1729862325102,8.85315974,174.35,174.3,8.85315974]
[1729862326007,8.85315974,174.35,174.31,8.85315974]
[1729862326305,2.8695,174.33,174.31,8.85315974]
[1729862328606,2.8695,174.33,174.3,8.85315974]
[1729862329402,2.8695,174.33,174.29,4.44]
[1729862329602,2.8695,174.33,174.3,8.85315974]
[1729862335506,11.72265974,174.33,174.29,2.87]
[1729862335815,11.72265974,174.33,174.29,7.31]
[1729862337204,2.8698,174.31,174.24,8.34288706]
[1729862337406,8.85315974,174.3,174.25,9.6559015]
[1729862337609,8.85315974,174.29,174.25,4.44]
[1729862338107,8.85315974,174.29,174.25,7.3106]
[1729862338312,8.85315974,174.29,174.25,4.44]
[1729862338710,11.72325974,174.29,174.24,11.72385974]
[1729862338911,11.72325974,174.29,174.25,4.44]
[1729862339517,8.85315974,174.29,174.25,4.44]
[1729862339716,3.7347,174.35,174.28,8.85315974]
[1729862339918,8.85315974,174.34,174.28,8.85315974]
[1729862340216,2.8695,174.33,174.3,8.85315974]
[1729862341014,11.72245974,174.34,174.3,8.85315974]
[1729862341220,4.44,174.41,174.33,8.85315974]
[1729862341417,8.85315974,174.37,174.33,8.85315974]
[1729862341618,2.8691,174.35,174.33,8.85315974]
[1729862341917,2.8691,174.35,174.31,8.85315974]
[1729862343617,2.8691,174.35,174.29,4.44]
[1729862343618,8.85315974,174.34,174.29,4.44]
[1729862343823,2.8695,174.33,174.29,13.29315974]
[1729862344027,8.85315974,174.31,174.29,4.44]
[1729862344223,2.8699,174.3,174.29,4.44]
[1729862344519,8.85315974,174.31,174.26,7.2104]
[1729862344724,11.72295974,174.31,174.26,7.2104]
[1729862345417,8.85315974,174.27,174.24,8.35374984]
[1729862345619,8.85315974,174.26,174.23,4.34]
[1729862345817,11.72395974,174.24,174.23,4.34]
[1729862346017,11.72395974,174.24,174.11,61.98]
[1729862346220,8.85315974,174.23,174.19,8.85315974]
[1729862346420,8.85315974,174.23,174.2,5.22602856]
[1729862346622,8.85315974,174.23,174.19,13.19315974]
[1729862346917,2.8713,174.21,174.2,5.22793743]
[1729862347108,11.72445974,174.21,174.16,8.36166104]
[1729862347309,11.72445974,174.21,174.17,6.66531237]
[1729862347527,11.72445974,174.21,174.16,4.34]
[1729862347715,8.85315974,174.19,174.17,6.66617321]
[1729862348023,8.85315974,174.19,174.16,4.34]
[1729862348328,2.8716,174.2,174.17,6.66671349]
[1729862348633,13.79339241,174.22,174.16,4.34]
[1729862348825,2.8717,174.19,174.16,4.34]
[1729862349021,13.79339241,174.22,174.15,4.34]
[1729862349317,2.8719,174.18,174.14,4.34]
[1729862349624,13.79339241,174.22,174.15,5.22917293]
[1729862349820,13.79339241,174.22,174.14,4.34]
[1729862350013,13.79339241,174.22,174.15,5.22920659]
[1729862350320,2.8718,174.18,174.14,4.34]
[1729862350527,13.79339241,174.17,174.09,2.8732]
[1729862350822,2.8722,174.16,174.1,6.66884215]
[1729862351017,1.2031,174.17,174.12,2.8728]
[1729862351224,1.273,174.19,174.12,4.34]
[1729862351619,2.8715,174.2,174.13,5.22796866]
[1729862351819,2.8715,174.2,174.12,4.34]
[1729862352126,2.8715,174.2,174.14,2.8725]
[1729862352515,2.8715,174.2,174.12,4.34]
[1729862352716,2.8717,174.19,174.13,8.10058548]
[1729862352916,2.8717,174.19,174.13,2.8726]
[1729862355426,2.8717,174.19,174.12,4.34]
[1729862355427,1.2031,174.23,174.18,2.8718]
[1729862355621,1.2031,174.23,174.18,4.34]
[1729862355823,1.2159,174.24,174.18,4.34]
[1729862356522,15.05879241,174.23,174.18,4.34]
[1729862357026,2.8712,174.22,174.18,4.34]
[1729862357525,15.05879241,174.23,174.18,4.34]
[1729862357724,17.92979241,174.23,174.18,4.34]
[1729862358531,4.1364,174.23,174.18,4.34]
[1729862362333,2.8712,174.22,174.18,4.34]
[1729862362527,15.05879241,174.23,174.18,4.34]
[1729862363233,15.05879241,174.23,174.15,8.07883282]
[1729862363530,13.79339241,174.21,174.15,4.34]
[1729862364432,2.8717,174.19,174.15,4.34]
[1729862364824,13.79339241,174.19,174.15,4.34]
[1729862365035,13.79339241,174.19,174.12,4.34]
[1729862365240,2.872,174.18,174.13,2.8727]
[1729862365535,13.79339241,174.19,174.13,7.4627]
[1729862365737,13.79339241,174.19,174.13,4.59]
[1729862365932,2.872,174.18,174.13,4.59]
[1729862366128,13.79339241,174.17,174.13,4.59]
[1729862366333,15.03759241,174.17,174.13,4.59]
[1729862366638,1.2363,174.16,174.13,4.59]
[1729862366937,2.8724,174.15,174.13,4.59]
[1729862367334,13.79339241,174.15,174.07,1.43675326]
[1729862367542,13.79339241,174.15,174.07,4.34]
[1729862367839,13.79339241,174.15,174.07,9.54966419]
[1729862368030,13.79339241,174.23,174.13,13.79339241]
[1729862368235,13.79339241,174.23,174.15,2.8723]
[1729862368236,2.8716,174.2,174.15,2.8723]
[1729862368734,13.79339241,174.23,174.13,18.13339241]
[1729862368932,2.8714,174.21,174.14,2.8724]
[1729862370634,2.8712,174.22,174.17,2.872]
[1729862370940,4.34,174.24,174.17,2.872]
[1729862371942,13.79339241,174.25,174.17,2.872]
[1729862372142,18.13339241,174.25,174.17,2.872]
[1729862372340,2.8711,174.23,174.17,2.872]
[1729862372635,1.2584,174.3,174.17,4.34]
[1729862372836,4.1283,174.3,174.22,13.79339241]
[1729862373047,1.2584,174.3,174.22,18.13339241]
[1729862373344,1.2584,174.3,174.26,2.8705]
[1729862373839,2.8702,174.28,174.23,2.8709]
[1729862375135,15.05179241,174.3,174.23,2.8709]
[1729862375338,2.8701,174.29,174.23,2.8709]
[1729862375639,1.2584,174.3,174.22,18.13339241]
[1729862376535,1.2584,174.3,174.25,2.8705]
[1729862376735,4.1283,174.3,174.25,2.8705]
[1729862377545,1.2584,174.3,174.27,2.8702]
[1729862378236,1.1915,174.31,174.27,2.8702]
[1729862381448,1.1915,174.31,174.26,2.8705]
[1729862381639,1.1915,174.31,174.24,13.79339241]
[1729862381949,1.1915,174.31,174.26,2.8705]
[1729862382145,1.1915,174.31,174.24,13.79339241]
[1729862384740,1.1915,174.31,174.27,2.8702]
[1729862386156,2.59,174.3,174.27,2.8702]
[1729862388352,11.40652966,174.3,174.27,2.8702]
[1729862389253,11.40652966,174.3,174.27,11.68672966]
[1729862390049,2.59,174.3,174.27,11.68672966]
[1729862392353,11.40652966,174.3,174.27,11.68672966]
[1729862392552,8.81652966,174.28,174.24,4.4]
[1729862392747,8.81652966,174.25,174.18,8.34067429]
[1729862392949,8.81652966,174.25,174.2,8.81652966]
[1729862393755,2.59,174.3,174.23,2.8709]
[1729862393756,8.81652966,174.26,174.23,2.8709]
[1729862393956,8.81652966,174.27,174.23,11.68742966]
[1729862394854,2.59,174.3,174.22,4.4]
[1729862394855,2.59,174.3,174.25,2.8706]
[1729862395160,2.59,174.3,174.24,8.81652966]
[1729862395161,11.40652966,174.3,174.24,8.81652966]
[1729862395457,2.59,174.3,174.26,2.8705]
[1729862395653,11.40652966,174.3,174.26,2.8705]
[1729862396157,11.40652966,174.3,174.25,11.68712966]
[1729862396357,11.40652966,174.3,174.25,8.81652966]
[1729862396851,11.40652966,174.3,174.26,2.8705]
[1729862397057,8.81652966,174.28,174.22,4.4]
[1729862397455,8.81652966,174.28,174.22,13.21652966]
[1729862397654,8.81652966,174.28,174.25,2.8707]
[1729862398956,2.59,174.3,174.22,4.4]
[1729862398957,8.81652966,174.26,174.22,2.8711]
[1729862399263,8.81652966,174.24,174.19,13.21652966]
[1729862399467,8.81652966,174.24,174.19,4.4]
[1729862399858,2.59,174.3,174.14,8.34936861]
[1729862399859,8.81652966,174.22,174.14,8.34936861]
[1729862400063,8.81652966,174.22,174.15,19.40533455]
[1729862400258,8.81652966,174.22,174.16,23.82186421]
[1729862400459,8.81652966,174.22,174.18,2.8717]
[1729862400764,8.81652966,174.22,174.16,17.16589827]
[1729862400958,8.81652966,174.22,174.19,2.8717]
[1729862402366,13.78904437,174.25,174.19,2.8717]
[1729862403065,13.78904437,174.25,174.17,4.4]
[1729862403261,13.78904437,174.25,174.19,2.8716]
[1729862403859,13.78904437,174.25,174.2,2.8715]
[1729862404964,13.78904437,174.25,174.19,2.8715]
[1729862405261,1.2898,174.24,174.17,4.34]
[1729862405455,1.2898,174.24,174.18,6.66572622]
[1729862405659,1.2898,174.24,174.17,4.34]